[Event "Austrian Championship 2022"]
[Site "Vienna"]
[Date "2022.08.19"]
[Round "9.12"]
[White "Borrmann, Laurenz"]
[Black "Dotzer, Lukas"]
[Result "1-0"]
[ECO "B48"]
[WhiteElo "2274"]
[BlackElo "2269"]
[Annotator "TA"]
[PlyCount "80"]
[EventDate "2022.08.12"]
[EventType "swiss"]
[EventCountry "AUT"]
[SourceTitle "playchess.com"]
[Source "ChessBase"]
[SourceQuality "1"]
[TimeControl "40/5400+30:1800+30"]

{[%evp 11,80,32,41,30,22,17,66,10,26,16,21,12,37,37,22,18,19,20,16,22,21,25,38,22,10,0,27,31,75,79,65,77,122,122,134,134,145,143,144,152,151,151,144,143,146,129,143,145,142,146,140,132,122,107,167,157,158,118,144,121,172,87,87,87,87,79,93,89,94,96,124]} 1. e4 {[%emt 0:00:08]} c5 {[%emt 0:00:01]} 2. Nf3 {[%emt 0:00:09]} e6 {[%emt 0:00:05]} 3. d4 {[%emt 0:00:06]} cxd4 {[%emt 0:00:05]} 4. Nxd4 {[%emt 0:00:07]} Nc6 {[%emt 0:00:07]} 5. Nc3 {[%emt 0:00:08]} Qc7 {[%emt 0:00:12]} 6. Be3 {[%emt 0:00:09]} a6 {[%emt 0:00:04]} 7. Qf3 {[%emt 0:00:09] B48: Sicilian: Taimanov: 5 Nc3 Qc7 6 Be3 a6 without Be2.} Nf6 {[%emt 0:00:16][%cal Of8a3]} 8. O-O-O {[%emt 0:00:12]} d6 {[%emt 0:11:30] 8...Rb8 gains popularity.} (8... Nxd4 $11 {might be stronger.} 9. Bxd4 e5) 9. Qg3 {[%emt 0:06:37]} ({Better is} 9. Nxc6 $14 bxc6 10. Qg3) 9... Nxd4 {[%emt 0:17:51]} 10. Bxd4 {[%emt 0:01:29]} e5 {[%emt 0:00:13]} 11. Be3 {[%emt 0:00:10]} b5 {[%emt 0:01:37]} 12. a3 {[%emt 0:16:51]} Be6 {[%emt 0:10:12] [#]} 13. Bg5 $146 {[%emt 0:04:37]} ({Predecessor:} 13. Be2 Rb8 14. f4 b4 15. axb4 Rxb4 16. Rhf1 Qa5 17. Bd3 Rxb2 18. Kxb2 Qb4+ 19. Kc1 Qxc3 {1-0 (29) Aravindh,C (2641)-Panarin,M (2562) Chess.com INT 2020}) 13... Be7 {[%emt 0:03:11]} 14. Bxf6 {[%emt 0:01:08]} Bxf6 {[%emt 0:00:13]} 15. Nd5 {[%emt 0:01:10]} Bxd5 {[%emt 0:00:20]} 16. Rxd5 {[%emt 0:00:09]} Rc8 {[%emt 0:01:11][%csl Gc8][%cal Rc7c2]} 17. Qd3 {[%emt 0:08:04] Active counter play!} Qb6 {[%emt 0:08:07]} 18. Qe3 {[%emt 0:08:41]} Qxe3+ {[%emt 0:07:34]} 19. fxe3 {[%emt 0:00:06]} Rc6 {[%emt 0:00:08]} 20. a4 {[%emt 0:03:43]} bxa4 {[%emt 0:01:49]} 21. Ra5 $1 {[%emt 0:00:20][%csl LRa4,LRa6]} Kd7 {[%emt 0:06:43]} 22. Rxa4 {[%emt 0:03:51]} Rb8 {[%emt 0:07:24]} 23. Bxa6 {[%emt 0:08:29]} Bg5 {[%emt 0:02:04]} 24. Re1 {[%emt 0:01:17]} Rcb6 {[%emt 0:04:12]} 25. b3 {[%emt 0:01:11]} Rb4 {[%emt 0:00:13]} 26. Rxb4 {[%emt 0:00:15]} Rxb4 $16 {[%emt 0:00:09][%mdl 4096] Endgame [#] KRB-KRB} 27. Bc4 $1 {[%emt 0:00:09]} g6 {[%emt 0:05:30]} 28. c3 {[%emt 0:12:44]} ({Much less strong is} 28. Bxf7 Rxe4 29. Kd2 Rh4 $16) 28... Rb8 {[%emt 0:00:11]} 29. Bd5 {[%emt 0:07:06]} f5 {[%emt 0:01:45]} 30. Kd2 {[%emt 0:01:22]} f4 {[%emt 0:07:18]} 31. exf4 {[%emt 0:00:29]} exf4 {[%emt 0:00:30]} 32. Kd3 {[%emt 0:00:50]} Bh4 {[%emt 0:03:29]} (32... Bf6 $16 33. Ra1 Rc8) 33. Rf1 $18 {[%emt 0:00:25]} Rf8 {[%emt 0:00:15]} 34. Ke2 {[%emt 0:01:38]} Bd8 {[%emt 0:02:22]} 35. Kf3 {[%emt 0:06:02]} h5 {[%emt 0:00:34]} (35... Bf6 $16 {was worth a try.}) 36. Rd1 {[%emt 0:01:12]} (36. Ra1 $18) 36... g5 $16 {[%emt 0:00:32] [#] White is better.} 37. h3 $1 {[%emt 0:00:41] Prevents g4+.} Bf6 {[%emt 0:00:30]} 38. Ra1 {[%emt 0:04:03]} Bxc3 {[%emt 0:00:30]} 39. Ra7+ {[%emt 0:00:17]} Kd8 {[%emt 0:00:02]} 40. Be6 {[%emt 0:02:05]} Be5 {[%emt 0:00:00] Weighted Error Value: White=0.08 (flawless) /Black=0.13 (very precise)} 1-0

[Event "Austrian Championship 2022"]
[Site "Vienna"]
[Date "2022.08.19"]
[Round "9.13"]
[White "Lerch, Johannes"]
[Black "Balint, Peter"]
[Result "1/2-1/2"]
[ECO "E60"]
[WhiteElo "2222"]
[BlackElo "2051"]
[Annotator "TA"]
[PlyCount "67"]
[EventDate "2022.08.12"]
[EventType "swiss"]
[EventCountry "AUT"]
[SourceTitle "playchess.com"]
[Source "ChessBase"]
[SourceQuality "1"]
[TimeControl "40/5400+30:1800+30"]

{[%evp 18,67,48,43,49,12,42,46,43,27,39,39,61,29,28,28,29,33,47,31,44,35,37,16,27,25,30,18,30,20,14,0,0,0,0,0,13,0,0,-10,9,0,0,0,0,-27,0,-33,0,-13,-14,-22]} 1. Nf3 {[%emt 0:00:03]} Nf6 {[%emt 0:00:23]} 2. c4 {[%emt 0:00:16]} g6 {[%emt 0:00:39]} 3. b3 {[%emt 0:00:06]} Bg7 {[%emt 0:00:06]} 4. Bb2 {[%emt 0:00:05]} O-O {[%emt 0:01:35]} 5. g3 {[%emt 0:00:49]} c5 {[%emt 0:00:15]} 6. Bg2 {[%emt 0:00:21]} Nc6 {[%emt 0:00:28]} 7. O-O {[%emt 0:00:35]} d6 {[%emt 0:08:38]} 8. d4 {[%emt 0:02:20]} cxd4 {[%emt 0:01:33]} 9. Nxd4 {[%emt 0:00:06]} Nxd4 {[%emt 0:01:59]} 10. Qxd4 {[%emt 0:01:19]} Qa5 {[%emt 0:04:39] E60: King's Indian: Unusual lines and Fianchetto Variation without Nc3.} 11. Qd2 {[%emt 0:13:00] [#]} (11. Bc3 $5 {[%cal Rc3a5]} Qa6 12. Nd2 $14) 11... Qh5 $146 {[%emt 0:02:40]} ({Predecessor:} 11... Qxd2 12. Nxd2 Rb8 13. Rab1 Bf5 14. e4 Bd7 15. e5 Ne8 16. exd6 Nxd6 17. Bxg7 Kxg7 18. Rfe1 {½-½ (40) Vidakovich,Y-Jaroshenko,S Lvov 1999}) 12. h4 {[%emt 0:01:24]} Rb8 {[%emt 0:04:54] White is slightly better.} 13. Nc3 {[%emt 0:03:39] Against b5} Qa5 {[%emt 0:01:55]} 14. Rfd1 {[%emt 0:02:27][%cal Bf1d1,Bd1d2,Bd2c2][%mdl 32] Strongly threatening Nd5.} Re8 {[%emt 0:03:24]} 15. a3 {[%emt 0:20:31]} (15. Nb5 $5 {[%cal Rd2a5]} Qxd2 16. Rxd2 $14) 15... Be6 {[%emt 0:04:02]} 16. Nb5 {[%emt 0:04:51]} Qxd2 {[%emt 0:02:54]} 17. Rxd2 {[%emt 0:00:01]} a6 {[%emt 0:00:25]} 18. Nc7 {[%emt 0:03:58]} Rec8 {[%emt 0:01:13]} 19. Nxe6 {[%emt 0:00:07]} fxe6 {[%emt 0:00:03]} 20. Rb1 {[%emt 0:05:22]} Kf7 {[%emt 0:06:07]} 21. Bd4 {[%emt 0:01:32] Black must now prevent Ba7. This bishop pair is nice.} b6 {[%emt 0:00:35]} 22. Rc2 {[%emt 0:04:45]} Nd7 {[%emt 0:00:54]} 23. Bxg7 {[%emt 0:04:39]} Kxg7 {[%emt 0:00:05]} 24. b4 {[%emt 0:00:22]} a5 {[%emt 0:03:54]} 25. f4 {[%emt 0:05:12]} Kf6 {[%emt 0:03:34]} 26. g4 {[%emt 0:04:05]} Rc7 {[%emt 0:05:07]} 27. Be4 {[%emt 0:01:26]} Rbc8 {[%emt 0:00:54]} 28. g5+ {[%emt 0:01:21]} Kf7 {[%emt 0:01:33]} 29. Rbc1 {[%emt 0:00:15]} axb4 {[%emt 0:04:38]} 30. axb4 {[%emt 0:00:02]} Nb8 {[%emt 0:00:14]} 31. b5 {[%emt 0:04:16] Against Na6} Ra7 {[%emt 0:00:45]} 32. e3 {[%emt 0:05:02][%cal Oh4h5]} Ra4 {[%emt 0:01:13]} 33. Kf2 {[%emt 0:01:11][%cal Oh4h5]} Nd7 {[%emt 0:00:52]} 34. Bf3 {[%emt 0:04:39] Weighted Error Value: White=0.12 (very precise) /Black=0.09 (flawless)} 1/2-1/2

[Event "Austrian Championship 2022"]
[Site "Vienna"]
[Date "2022.08.19"]
[Round "9.14"]
[White "Exler, Veronika"]
[Black "Sadilek, Maximilian"]
[Result "0-1"]
[ECO "A60"]
[WhiteElo "2132"]
[BlackElo "2230"]
[Annotator "TA"]
[PlyCount "92"]
[EventDate "2022.08.12"]
[EventType "swiss"]
[EventCountry "AUT"]
[SourceTitle "playchess.com"]
[Source "ChessBase"]
[SourceQuality "1"]
[TimeControl "40/5400+30:1800+30"]

{[%evp 18,92,0,-18,-17,-6,-22,-29,18,0,2,-43,-39,-71,-57,-40,-31,-28,-44,-49,-46,-70,-59,-229,-186,-485,-281,-271,-281,-280,-275,-261,382,-163,-166,-178,-191,-350,-346,-591,-577,-487,-573,-560,-561,-558,-534,-495,-487,-1035,-1024,-1035,-954,-914,-839,-5925,-5043,-29953,-8768,-5606,-968,-29972,-29973,-29973,-29974,-29974,-29975,-29975,-29976,-29976,-29977,-29977,-29978,-29977,-29977,-29980,-29981]} 1. d4 {[%emt 0:00:46]} Nf6 {[%emt 0:00:11]} 2. g3 {[%emt 0:00:04]} c5 {[%emt 0:02:21]} 3. d5 {[%emt 0:00:23]} e6 {[%emt 0:00:25]} 4. c4 {[%emt 0:01:05]} exd5 {[%emt 0:02:01]} 5. cxd5 {[%emt 0:00:06]} d6 {[%emt 0:00:03]} 6. Nc3 {[%emt 0:00:16]} a6 {[%emt 0:01:48]} 7. a4 {[%emt 0:00:08]} g6 {[%emt 0:00:05]} 8. e4 {[%emt 0:03:47]} Bg7 {[%emt 0:00:11]} 9. Bg2 {[%emt 0:00:57]} O-O {[%emt 0:00:06]} 10. Nge2 {[%emt 0:01:34]} Nbd7 {[%emt 0:07:10] A60: Modern Benoni: Early Divergences.} 11. O-O {[%emt 0:13:35]} Rb8 {[%emt 0:01:13]} 12. a5 {[%emt 0:04:09]} Ne8 {[%emt 0:18:42] [#]} (12... Re8 $142) 13. Qc2 $146 {[%emt 0:11:41]} ({Predecessor:} 13. f4 Nc7 14. Qd3 b5 15. axb6 Rxb6 16. Ra2 Nb5 17. Be3 Rb8 18. h3 Qc7 19. Rc1 {½-½ (19) Esswein,K (2067)-Pieper,T (2222) Tegernsee 2021}) 13... Nc7 {[%emt 0:05:51]} 14. Bh3 {[%emt 0:18:38]} Nb5 {[%emt 0:05:08]} 15. Bd2 {[%emt 0:03:36]} Nd4 {[%emt 0:05:55]} (15... Ne5 $5 {[%cal Rc8h3]} 16. Bg2 f5 $15) 16. Nxd4 {[%emt 0:07:06]} cxd4 {[%emt 0:00:20]} 17. Na4 {[%emt 0:01:25]} Ne5 {[%emt 0:02:00]} 18. Bxc8 {[%emt 0:02:40]} Rxc8 {[%emt 0:05:43]} 19. Qb3 {[%emt 0:00:08]} f5 {[%emt 0:06:56]} 20. f3 {[%emt 0:14:13]} (20. exf5 $1 $15 Rxf5 21. Bf4) 20... Nc4 $36 {[%emt 0:03:00][%mdl 2048] Black is really pushing.} 21. Qb4 {[%emt 0:04:25]} (21. Qd3) 21... b5 {[%emt 0:15:31]} (21... fxe4 $142 {Strongly threatening ...e3.} 22. fxe4 d3) 22. Nb6 {[%emt 0:02:34]} ({Much worse is} 22. axb6 a5 23. Qb5 Nxd2 $19) 22... Nxb6 {[%emt 0:00:09]} 23. axb6 {[%emt 0:00:01]} fxe4 {[%emt 0:00:27]} ({Stronger than} 23... Qxb6 24. exf5 Rxf5 25. Rac1 $17) 24. fxe4 {[%emt 0:01:26]} Rf7 {[%emt 0:00:30][%mdl 8192]} (24... Qxb6 $19 {avoids the disaster.} 25. Rxf8+ Rxf8) 25. Rac1 $4 {[%mdl 8192]} (25. Rxf7 $18 {was the only winning move.} Kxf7 26. Rxa6) 25... Rxf1+ 26. Rxf1 {[%emt 0:04:32]} Qxb6 {[%emt 0:00:41]} 27. Bf4 $2 {[%emt 0:00:14]} (27. Kg2 {keeps fighting.}) 27... d3+ {[%emt 0:03:12]} 28. Kh1 $2 {[%emt 0:00:09]} (28. Kg2 Rc2+ 29. Kh3) 28... a5 {[%emt 0:09:53]} 29. Qxd6 {[%emt 0:00:52]} Qxd6 {[%emt 0:00:18]} 30. Bxd6 {[%emt 0:00:06][%mdl 4096] Endgame KRB-KRB} d2 {[%emt 0:00:06] ( -> ...Rc1)} 31. Bf4 {[%emt 0:00:26]} Bxb2 {[%emt 0:03:10]} 32. Bxd2 {[%emt 0:00:05]} a4 {[%emt 0:00:32]} 33. d6 {[%emt 0:02:03] [#]} (33. e5 $142 Bxe5 34. Bb4) 33... a3 $1 {[%emt 0:02:30]} ({And not} 33... Rd8 34. Bb4 $17) 34. Bg5 {[%emt 0:00:48]} a2 {[%emt 0:00:39]} 35. d7 {[%emt 0:00:05]} Ra8 {[%emt 0:00:06] Hoping for ...b4.} 36. d8=Q+ {[%emt 0:04:27]} Rxd8 {[%emt 0:00:04]} 37. Bxd8 {[%emt 0:00:00] [#]} b4 $1 {[%emt 0:00:45]} 38. Be7 {[%emt 0:00:23]} b3 {[%emt 0:00:15]} 39. h4 {[%emt 0:00:32]} a1=Q {[%emt 0:01:03] Black mates.} 40. Rxa1 {[%emt 0:00:04]} Bxa1 {[%emt 0:00:03] KB-KB} 41. Ba3 {[%emt 0:30:33]} Kf7 {[%emt 0:30:10]} 42. Kg2 {[%emt 0:00:26]} Ke6 {[%emt 0:00:26]} 43. Kf3 {[%emt 0:00:30]} b2 {[%emt 0:00:21]} 44. Bxb2 {[%emt 0:00:06]} Bxb2 {[%emt 0:00:04]} 45. h5 {[%emt 0:00:00]} g5 {[%emt 0:00:00]} 46. Kg4 {[%emt 0:00:00]} h6 {[%emt 0:00:00] Weighted Error Value: White=1.10/Black=0.29 (precise)} 0-1

[Event "Austrian Championship 2022"]
[Site "Vienna"]
[Date "2022.08.19"]
[Round "9.15"]
[White "Kienboeck, Benjamin"]
[Black "Nolz, Tom"]
[Result "0-1"]
[ECO "B43"]
[WhiteElo "2151"]
[BlackElo "2230"]
[Annotator "TA"]
[PlyCount "114"]
[EventDate "2022.08.12"]
[EventType "swiss"]
[EventCountry "AUT"]
[SourceTitle "playchess.com"]
[Source "ChessBase"]
[SourceQuality "1"]
[TimeControl "40/5400+30:1800+30"]

{[%evp 16,114,52,51,134,137,145,139,181,183,179,155,168,112,110,129,144,119,183,164,147,69,125,116,121,106,109,102,106,39,71,0,0,0,0,0,0,0,0,0,0,0,0,0,0,0,0,0,16,0,0,0,0,0,8,0,0,0,0,-20,-20,-712,-622,-1307,-1152,-845,-505,-2209,-1470,-2774,-2388,-2143,-2144,-1186,-2058,-1967,-1834,-1841,-1276,-1851,-1489,-1099,-98,-29968,-29972,-29972,-29970,-29975,-29976,-29975,-29974,-29975,-29976,-29976,-29977,-29979,-29976,-29981,-29982,-29980,-29977]} 1. e4 {[%emt 0:00:03]} c5 {[%emt 0:01:32]} 2. Nf3 {[%emt 0:00:10]} Nc6 {[%emt 0:00:53]} 3. d4 {[%emt 0:00:09]} cxd4 {[%emt 0:00:09]} 4. Nxd4 {[%emt 0:00:07]} e6 {[%emt 0:00:38]} 5. Nc3 {[%emt 0:00:24]} a6 {[%emt 0:00:50]} 6. g3 {[%emt 0:11:28]} Qc7 {[%emt 0:11:19]} 7. Bg2 {[%emt 0:01:12]} b5 {[%emt 0:00:38]} 8. O-O {[%emt 0:02:49]} Bb7 {[%emt 0:00:53]} 9. Re1 {[%emt 0:05:11][%cal Oc3d5]} h5 {[%emt 0:02:59] [#] B43: Sicilian: Kan Variation: 5 Nc3.} (9... Nxd4 $14 10. Qxd4 Rc8) 10. Nd5 $1 $16 {[%emt 0:03:14][%mdl 512]} Qd8 {[%emt 0:02:54]} (10... Qb8 11. Nxc6) 11. a4 {[%emt 0:05:54] [#]} Bc5 $146 {[%emt 0:02:50] White is clearly better.} ({Predecessor:} 11... bxa4 12. Rxa4 h4 13. Nxc6 Bxc6 14. Ra1 Ne7 15. Be3 Nc8 16. Bf4 d6 17. Qd3 Bb7 {½-½ (49) Suchin,D (2055)-Tenner,H Germany 2002}) 12. Nb3 {[%emt 0:03:57]} Ba7 {[%emt 0:03:38]} 13. axb5 {[%emt 0:02:38]} axb5 {[%emt 0:00:28] [#]} 14. Nc3 {[%emt 0:04:18]} (14. Bf4 $1 $18 {Nc7+ is the strong threat.} e5 (14... Bb8 15. Bxb8) 15. Bd2) 14... Nf6 {[%emt 0:05:29][%cal Oa7f2]} 15. Bg5 {[%emt 0:03:59]} (15. Nxb5 Bxf2+ 16. Kxf2 Qb6+ 17. Be3 Qxb5 $14) 15... b4 {[%emt 0:08:09] [#]} 16. Nd5 {[%emt 0:08:35][%mdl 512]} Ne5 {[%emt 0:04:29] [#]} (16... exd5 $2 17. exd5+ (17. e5 Bxf2+ 18. Kxf2 Ng4+ 19. Qxg4 hxg4 $15) 17... Ne7 18. Bxf6 (18. d6 Bxf2+ 19. Kxf2 Rxa1 $11) 18... gxf6 19. d6 Bxf2+ 20. Kxf2 Qb6+ 21. Re3 Rxa1 22. Qxa1 Bxg2 23. Kxg2 $1 $18) (16... d6 $16 {was worth a try.}) (16... Bxf2+ 17. Kxf2) 17. Rxa7 $1 $18 {[%emt 0:05:18][%mdl 512]} Rxa7 {[%emt 0:00:14]} 18. Be3 {[%emt 0:00:50]} (18. Qd4 $16 Nc6 19. Qc5 (19. Nxf6+ gxf6 20. Qxf6 Qxf6 $11)) 18... exd5 {[%emt 0:23:46]} 19. Bxa7 $16 {[%emt 0:02:18][%cal Re4d5]} O-O {[%emt 0:07:54][%cal Rd5e4]} 20. exd5 {[%emt 0:03:36]} d6 {[%emt 0:00:13]} 21. Bd4 {[%emt 0:06:15]} Re8 {[%emt 0:01:18]} 22. f4 {[%emt 0:09:07]} ({White should play} 22. Nd2 $16) 22... Ned7 $14 {[%emt 0:00:31]} 23. c4 {[%emt 0:03:59]} ({White should try} 23. Rxe8+ $16 Qxe8 24. Nd2) 23... bxc3 $1 $11 {[%emt 0:00:22]} 24. bxc3 {[%emt 0:00:11]} Rxe1+ {[%emt 0:00:32]} 25. Qxe1 {[%emt 0:00:01]} Bxd5 {[%emt 0:00:27]} 26. Bxd5 {[%emt 0:02:41]} Nxd5 {[%emt 0:00:02]} 27. Nd2 {[%emt 0:00:33]} N5f6 {[%emt 0:06:03]} 28. Ne4 {[%emt 0:05:40]} Qe8 {[%emt 0:07:38]} 29. Nxf6+ {[%emt 0:00:01]} Nxf6 {[%emt 0:00:06]} 30. Qxe8+ {[%emt 0:01:48]} Nxe8 {[%emt 0:00:03][%mdl 4096] Endgame KB-KN} 31. c4 {[%emt 0:00:27]} f6 {[%emt 0:01:03]} 32. Kf2 {[%emt 0:00:49]} g6 {[%emt 0:00:58]} 33. f5 {[%emt 0:03:58]} gxf5 {[%emt 0:00:41]} 34. Be3 {[%emt 0:02:05]} Kf7 {[%emt 0:00:35]} 35. Bf4 {[%emt 0:00:12]} Ke6 {[%emt 0:06:57]} 36. Kg2 {[%emt 0:00:16]} d5 {[%emt 0:00:45][%cal Bd6d5,Bd5d4,Bd4d3][%mdl 32]} 37. c5 {[%emt 0:00:29]} Kd7 {[%emt 0:00:24]} 38. Kh3 $2 {[%emt 0:02:48][%mdl 8192] Black continues to play with concentration.} (38. Be3 $11) 38... d4 $1 $19 {[%emt 0:00:35] Strongly threatening ...Kc6.} 39. Kh4 {[%emt 0:01:13] [#]} Ng7 {[%emt 0:00:12] Threatens to win with ...Kc6.} 40. Bh6 {[%emt 0:00:23]} d3 {[%emt 0:00:01][%cal Od7c6]} 41. Kh3 {[%emt 0:09:00]} (41. Be3 $142 Kc7 42. Kh3) 41... Ne6 {[%emt 0:01:51] ( -> ...f4)} 42. Kg2 {[%emt 0:02:02]} Kc6 {[%emt 0:06:10]} 43. Be3 {[%emt 0:06:36]} Nxc5 {[%emt 0:00:11]} 44. Kf3 {[%emt 0:01:59]} Ne4 {[%emt 0:12:08]} (44... Ne6 $142 45. Bd2 Kd5) 45. Kf4 {[%emt 0:01:18] [#]} Nd6 $1 {[%emt 0:00:02]} ({And not} 45... d2 46. Bxd2 Nxd2 47. Kxf5 $11) 46. Bc1 {[%emt 0:00:50]} Kd5 {[%emt 0:00:11]} ({Inferior is} 46... Nc4 47. Kxf5 Kd7 48. Kxf6 $11) 47. Ke3 {[%emt 0:01:43]} Kc4 {[%emt 0:00:31] White must now prevent ...Kc3.} 48. Bd2 {[%emt 0:02:04]} Ne4 $2 {[%emt 0:02:12]} (48... Nb5 $19 49. Be1 Nd4) 49. Ba5 $2 {[%emt 0:00:26][%mdl 8192]} (49. Be1 $17) 49... Nc3 {[%emt 0:01:48] Black mates.} 50. Kd2 {[%emt 0:01:14]} Nd5 {[%emt 0:00:23]} 51. Bd8 {[%emt 0:00:15]} Kd4 {[%emt 0:00:09]} 52. Ba5 {[%emt 0:00:12]} Ke4 {[%emt 0:01:00]} 53. Bd8 {[%emt 0:00:17]} f4 {[%emt 0:00:34]} 54. gxf4 {[%emt 0:00:14]} f5 {[%emt 0:00:03]} 55. Ba5 {[%emt 0:01:12]} Nxf4 {[%emt 0:00:11]} 56. Ke1 {[%emt 0:00:10]} Ng2+ {[%emt 0:01:12]} 57. Kd2 {[%emt 0:00:26]} Ne3 {[%emt 0:00:07] Weighted Error Value: White=0.68/Black=0.24 (precise)} 0-1